bitfinex/quotes_SOLUSD_20250102
["timestamp","ask_amount","ask_price","bid_price","bid_amount"]
[1735783367889,1.6419,198.02,197.97,15.36751728]
[1735783368276,1.6419,198.02,197.96,0.75755375]
[1735783368482,1.6419,198.02,197.97,15.36751728]
[1735783370267,1.6419,198.02,197.94,0.75751989]
[1735783370268,1.6419,198.02,197.96,9.82921203]
[1735783370869,6.3734,198.04,197.98,9.82921203]
[1735783371083,1.5977,198.07,197.99,9.82921203]
[1735783371269,1.5977,198.07,198.01,9.82921203]
[1735783371586,1.5977,198.07,198.02,9.82921203]
[1735783371791,1.5977,198.07,198.01,9.82921203]
[1735783372292,1.5977,198.07,198.0,9.82921203]
[1735783372474,1.5977,198.07,198.01,9.82921203]
[1735783374898,1.5977,198.07,198.02,9.82921203]
[1735783377410,1.5977,198.07,198.01,9.82921203]
[1735783380832,1.5925,198.11,198.04,9.82921203]
[1735783380998,1.5925,198.11,198.06,9.82921203]
[1735783381328,1.5925,198.16,198.07,9.82921203]
[1735783381537,1.5925,198.16,198.09,9.82921203]
[1735783381697,1.5925,198.16,198.1,10.58621292]
[1735783382111,1.5925,198.16,198.11,9.82921203]
[1735783382820,1.5925,198.16,198.11,10.58615072]
[1735783383125,5.73185471,198.21,198.12,9.82921203]
[1735783383126,7.32435471,198.21,198.12,9.82921203]
[1735783384124,7.32435471,198.21,198.16,9.82921203]
[1735783384125,1.5925,198.21,198.16,9.82921203]
[1735783384307,1.5925,198.25,198.17,10.58590665]
[1735783384494,1.5925,198.25,198.18,9.82921203]
[1735783385424,1.5925,198.25,198.19,0.75661733]
[1735783385798,5.73185471,198.27,198.19,0.75661733]
[1735783385999,6.1534,198.28,198.19,10.58582936]
[1735783386196,6.1534,198.28,198.19,16.08067594]
[1735783386415,0.71808993,198.27,198.17,15.32405861]
[1735783386597,0.71808993,198.27,198.16,15.32405861]
[1735783387720,6.44994464,198.27,198.14,16.08065664]
[1735783387912,20.0,198.25,198.13,15.32405861]
[1735783388111,1.6481,198.23,198.13,0.75685049]
[1735783388351,0.71808993,198.22,198.11,15.32405861]
[1735783388525,0.71808993,198.22,198.13,15.32405861]
[1735783388727,0.71808993,198.22,198.14,0.75681771]
[1735783388925,2.36618993,198.23,198.14,0.75681771]
[1735783389519,2.36618993,198.23,198.15,23.776884]
[1735783389851,7.8015,198.28,198.18,39.10094261]
[1735783390021,7.8015,198.28,198.19,0.75658164]
[1735783390345,7.8015,198.28,198.19,16.08064025]
[1735783392829,7.8015,198.28,198.2,39.10094261]
[1735783393149,7.8015,198.28,198.21,0.75650822]
[1735783394518,7.8015,198.28,198.18,16.08059217]
[1735783395028,7.8015,198.28,198.19,15.32405861]
[1735783395548,7.8015,198.28,198.19,16.08063819]
[1735783395754,1.6481,198.28,198.22,23.776884]
[1735783395931,1.6481,198.28,198.22,24.53334913]
[1735783396450,1.6481,198.28,198.22,0.75646513]
[1735783396739,1.6481,198.28,198.21,0.7565672]
[1735783399827,1.6481,198.28,198.22,23.776884]
[1735783402862,6.283,198.33,198.24,39.10094261]
[1735783403040,6.283,198.33,198.25,0.75635733]
[1735783405746,6.283,198.33,198.26,23.776884]
[1735783407549,7.00108993,198.33,198.25,0.75635733]
[1735783407749,7.00108993,198.33,198.24,15.32405861]
[1735783408152,6.283,198.33,198.25,39.10094261]
[1735783408373,6.283,198.33,198.25,33.57891846]
[1735783410152,6.283,198.33,198.26,0.75633261]
[1735783410965,6.283,198.33,198.25,33.57891846]
[1735783411473,0.71808993,198.32,198.21,0.75637811]
[1735783411687,0.71808993,198.32,198.21,10.55841257]
[1735783411845,0.71808993,198.32,198.22,23.776884]
[1735783412363,0.71808993,198.32,198.21,30.55841257]
[1735783412576,0.71808993,198.32,198.22,20.0]
[1735783412949,0.71808993,198.32,198.21,30.55841257]
[1735783414351,0.71808993,198.32,198.21,0.75637811]
[1735783418576,0.71808993,198.32,198.21,10.55841257]
[1735783418763,0.71808993,198.32,198.22,23.776884]
[1735783418957,0.71808993,198.32,198.22,33.57891846]
[1735783419165,7.00108993,198.33,198.23,9.80203446]
[1735783419882,6.283,198.33,198.23,9.80203446]
[1735783420183,6.283,198.33,198.24,0.7563879]
[1735783420367,7.00108993,198.33,198.24,0.7563879]
[1735783420677,7.00108993,198.33,198.23,9.80203446]
[1735783426464,7.00108993,198.33,198.22,24.53331636]
[1735783426667,7.00108993,198.33,198.23,9.80203446]
[1735783426878,7.00108993,198.33,198.22,10.55846682]
[1735783427081,7.00108993,198.33,198.22,9.80203446]
[1735783427577,7.00108993,198.33,198.21,9.80203446]
[1735783427778,20.0,198.3,198.2,0.75651579]
[1735783427976,20.0,198.3,198.15,0.75665267]
[1735783427977,6.4954,198.27,198.15,0.75665267]
[1735783428277,0.71808993,198.26,198.15,9.80203446]
[1735783428575,0.71808993,198.26,198.15,10.55884816]
[1735783429081,0.71808993,198.26,198.17,9.80203446]
[1735783429377,6.4954,198.27,198.19,9.80203446]
[1735783432184,6.4954,198.27,198.2,10.55865416]
[1735783432564,7.21348993,198.27,198.19,9.80203446]
[1735783432761,7.21348993,198.27,198.19,10.55865878]
[1735783432979,7.21348993,198.27,198.2,9.80203446]
[1735783432980,6.4954,198.27,198.2,9.80203446]
[1735783433184,6.4954,198.27,198.21,10.55860166]
[1735783433893,1.5761,198.28,198.21,10.55860166]
[1735783434259,1.5761,198.28,198.22,9.80203446]
[1735783434474,1.5761,198.28,198.22,10.5585265]
[1735783435358,1.5761,198.28,198.24,9.80203446]
[1735783435589,5.35016505,198.33,198.25,0.75643799]
[1735783435590,6.99896505,198.33,198.25,0.75643799]
[1735783436282,0.71808993,198.32,198.22,9.80203446]
[1735783436871,0.71808993,198.32,198.23,0.75646535]
[1735783437070,0.71808993,198.32,198.23,10.55849981]
[1735783437277,0.71808993,198.32,198.23,0.75646535]
[1735783437585,0.71808993,198.32,198.23,10.55849981]
[1735783438986,0.71808993,198.32,198.23,0.75646535]
[1735783439185,0.71808993,198.32,198.22,23.776884]
[1735783439790,0.71808993,198.32,198.22,33.57891846]
[1735783440192,0.71808993,198.32,198.21,0.75648345]
[1735783440193,20.0,198.3,198.21,0.75648345]
[1735783440396,0.71808993,198.29,198.19,9.80203446]
[1735783440697,0.71808993,198.29,198.18,10.55853967]
[1735783440897,0.71808993,198.29,198.19,29.80203446]
[1735783441196,20.71808993,198.29,198.19,9.80203446]
[1735783441500,6.1309,198.27,198.18,10.55853967]
[1735783441701,0.71808993,198.26,198.18,10.55853967]
[1735783441899,0.71808993,198.26,198.18,0.75650521]
[1735783442073,0.71808993,198.26,198.17,9.80203446]
[1735783442269,0.71808993,198.26,198.14,10.55870867]
[1735783442473,20.0,198.24,198.13,9.80203446]
[1735783442668,1.6488,198.22,198.11,9.80203446]
[1735783442869,0.71808993,198.21,198.11,9.80203446]
[1735783444774,2.36688993,198.22,198.13,9.80203446]
[1735783446679,1.6488,198.22,198.14,9.80203446]
[1735783447201,1.6488,198.22,198.15,9.80203446]
[1735783447376,1.6488,198.22,198.13,23.776884]
[1735783447377,1.6488,198.22,198.16,9.80203446]
[1735783449507,1.6488,198.22,198.17,9.80203446]
[1735783450483,1.6488,198.22,198.18,9.80203446]
[1735783450714,6.06825498,198.26,198.18,9.80203446]
[1735783450887,6.1309,198.27,198.2,9.80203446]
[1735783451407,6.1309,198.27,198.19,10.55872677]
[1735783451598,2.28428993,198.28,198.19,10.55872677]
[1735783452207,0.71808993,198.27,198.19,10.55872677]
[1735783452507,0.71808993,198.27,198.15,32.6166]
[1735783452508,20.71808993,198.27,198.17,9.80203446]
[1735783452708,2.28428993,198.28,198.2,9.80203446]
[1735783452911,0.71808993,198.27,198.19,9.80203446]
[1735783454101,1.28428993,198.28,198.18,9.80203446]
[1735783455007,20.0,198.27,198.18,9.80203446]
[1735783455814,20.0,198.27,198.17,10.55868817]
[1735783456109,11.54626505,198.26,198.13,9.80203446]
[1735783456614,16.84471168,198.26,198.13,9.80203446]
[1735783458386,1.5877,198.22,198.11,9.80203446]
[1735783458790,1.5877,198.22,198.1,9.80203446]
[1735783459607,6.1961,198.2,198.08,9.80203446]
[1735783460388,20.0,198.16,198.06,9.80203446]
[1735783460588,1.5877,198.15,198.06,9.80203446]
[1735783461819,1.5877,198.15,198.05,9.80203446]
[1735783462516,1.5877,198.15,198.06,9.80203446]
[1735783462919,1.5877,198.15,198.07,9.80203446]
[1735783464317,1.5877,198.15,198.09,9.80203446]
[1735783465692,1.5877,198.15,198.08,9.80203446]
[1735783466012,1.5877,198.15,198.09,9.80203446]
[1735783469826,1.5877,198.15,198.06,10.55908538]
[1735783469998,21.5877,198.15,198.01,2.35219697]
[1735783470320,6.2849,198.14,198.02,9.80203446]
[1735783470622,6.2849,198.14,198.03,9.80203446]
[1735783471007,6.2849,198.14,198.04,9.80203446]
[1735783471824,6.2849,198.14,198.02,9.80203446]
[1735783472735,20.0,198.07,197.95,4.78977641]
[1735783473027,20.0,198.07,197.91,8.0131]
[1735783473028,6.2849,198.06,197.96,9.80203446]
[1735783475521,6.2849,198.06,197.95,9.80203446]
[1735783477137,6.2849,198.06,197.96,9.80203446]
[1735783477425,6.2849,198.06,197.95,9.80203446]
[1735783477723,6.2849,198.06,197.92,0.75753598]
[1735783477724,6.2849,198.06,197.94,29.80203446]
[1735783479060,20.0,198.03,197.94,9.80203446]
[1735783479365,1.5213,198.02,197.92,9.80203446]
[1735783480029,1.5213,198.02,197.87,13.39219629]
[1735783480229,23.776884,198.01,197.9,9.80203446]
[1735783482461,20.0,197.98,197.89,9.80203446]
[1735783483137,20.0,197.98,197.9,9.80203446]
[1735783485232,1.5213,198.02,197.9,9.80203446]
[1735783485435,1.5213,198.02,197.93,9.80203446]
[1735783486663,1.5213,198.02,197.92,9.80203446]
[1735783486956,6.1915,198.0,197.85,20.0]
[1735783487170,6.1915,198.0,197.88,9.80203446]
[1735783488469,6.1915,198.0,197.87,20.0]
[1735783488658,20.0,197.97,197.86,23.776884]
[1735783488857,1.5213,197.96,197.84,12.6361]
[1735783489042,1.5213,197.96,197.86,9.80203446]
[1735783489233,1.5213,197.96,197.87,9.80203446]
[1735783489940,1.5213,197.96,197.86,9.80203446]
[1735783490266,1.5213,197.96,197.85,9.80203446]
[1735783490437,20.0,197.95,197.8,12.6384]
[1735783490638,20.0,197.91,197.82,9.80203446]
[1735783491259,1.6176,197.9,197.82,9.80203446]
[1735783491843,1.6176,197.9,197.8,9.80203446]
[1735783492242,21.6176,197.9,197.79,9.80203446]
[1735783493172,21.6176,197.9,197.76,23.776884]
[1735783493360,20.0,197.89,197.79,9.80203446]
[1735783494275,1.6176,197.9,197.82,9.80203446]
[1735783494474,1.6176,197.9,197.83,9.80203446]
[1735783494647,1.6176,197.9,197.84,9.80203446]
[1735783495850,1.6176,197.9,197.83,9.80203446]
[1735783496046,1.6176,197.9,197.84,9.80203446]
[1735783496355,6.1915,197.94,197.85,10.56006313]
[1735783496559,6.1915,197.94,197.86,9.80203446]
[1735783498477,6.1915,197.94,197.87,9.80203446]
[1735783498851,6.1915,197.94,197.84,33.57891846]
[1735783499879,6.1915,197.94,197.84,9.80203446]
[1735783500177,6.1915,197.94,197.83,0.75790158]
[1735783500380,6.1915,197.94,197.81,9.80203446]
[1735783501086,23.776884,197.93,197.79,9.80203446]
[1735783501249,6.1915,197.94,197.79,9.80203446]
[1735783501452,6.1915,197.94,197.8,9.80203446]
[1735783502371,6.1915,197.94,197.8,15.38423754]
[1735783502769,20.0,197.91,197.8,15.38423754]
[1735783502972,20.0,197.91,197.79,15.38423754]
[1735783503370,21.6176,197.9,197.79,15.38423754]
[1735783503679,20.0,197.89,197.76,15.38423754]
[1735783504293,20.0,197.88,197.77,15.38423754]
[1735783505790,20.0,197.88,197.75,0.75828971]
[1735783505791,6.1395,197.87,197.75,15.38423754]
[1735783505965,6.1395,197.87,197.77,15.38423754]
[1735783506671,6.1395,197.87,197.73,13.40158076]
[1735783506672,6.1395,197.87,197.78,15.38423754]
[1735783507195,6.1395,197.87,197.77,15.38423754]
[1735783507488,6.1395,197.87,197.76,15.38423754]
[1735783507687,6.1395,197.87,197.78,15.38423754]
[1735783507902,1.6176,197.9,197.8,15.38423754]
[1735783508102,20.0,197.89,197.8,15.38423754]
[1735783508967,20.0,197.89,197.79,15.38423754]
[1735783509190,20.0,197.89,197.8,15.38423754]
[1735783510107,20.0,197.89,197.81,15.38423754]
[1735783510307,1.6176,197.9,197.83,15.38423754]
[1735783510511,1.6176,197.9,197.84,15.38423754]
[1735783510681,1.6176,197.9,197.83,15.38423754]
[1735783510883,1.6176,197.9,197.84,15.38423754]
[1735783511083,1.569,197.95,197.87,15.38423754]
[1735783511287,1.569,197.95,197.88,15.38423754]
[1735783513087,1.569,197.95,197.89,0.75780632]
[1735783513602,1.569,197.95,197.88,15.38423754]
[1735783513805,1.569,197.95,197.89,0.75780539]
[1735783513994,1.569,197.95,197.89,16.14204293]
[1735783514403,20.0,197.99,197.89,16.14204293]
[1735783515102,20.0,197.99,197.89,0.75780539]
[1735783515307,20.0,197.99,197.88,16.14203001]
[1735783516001,24.98336501,197.99,197.82,0.75779869]
[1735783516201,10.33353006,197.98,197.82,15.38423754]
[1735783516594,20.0,197.95,197.84,15.38423754]
[1735783516798,20.0,197.95,197.85,39.16112154]
[1735783517204,20.0,197.97,197.85,39.16112154]
[1735783517704,20.0,197.97,197.87,23.776884]
[1735783518006,1.05373288,197.99,197.9,23.776884]
[1735783518007,20.0,197.99,197.9,23.776884]
[1735783518318,1.569,198.0,197.9,39.91886561]
[1735783519401,1.569,198.06,197.98,15.38423754]
[1735783519591,1.569,198.06,197.9,16.14198161]
[1735783519592,1.569,198.06,197.97,15.38423754]
[1735783519800,1.569,198.06,197.93,15.38423754]
[1735783520106,20.0,198.04,197.94,23.776884]
[1735783520996,20.0,198.04,197.94,15.38423754]
[1735783521197,20.0,198.04,197.95,23.776884]
[1735783521505,20.0,198.04,197.94,23.776884]
[1735783523507,20.0,198.04,197.93,23.776884]
[1735783524911,20.0,198.04,197.92,0.75763835]
[1735783525087,20.0,198.04,197.89,1.5556]
[1735783525088,20.0,198.03,197.88,15.38423754]
[1735783525288,21.5813,198.02,197.87,16.14200264]
[1735783525488,20.0,197.98,197.87,16.14200264]
[1735783525702,20.0,197.98,197.87,0.7577651]
[1735783527016,20.0,197.98,197.85,35.38423754]
[1735783527392,1.5813,197.97,197.85,23.776884]
[1735783527695,1.5813,197.97,197.84,16.14209432]
[1735783528612,1.5813,197.97,197.85,23.776884]
[1735783528811,1.5813,197.97,197.85,39.16112154]
[1735783529013,1.5813,197.97,197.85,24.53477819]
[1735783529224,1.5813,197.97,197.87,23.776884]
[1735783529522,1.5813,197.97,197.85,16.14213173]
[1735783530615,1.5813,197.97,197.85,39.91901573]
[1735783531423,1.5813,197.97,197.86,39.16112154]
[1735783532127,1.5813,197.97,197.86,23.776884]
[1735783532423,20.0,197.96,197.84,150.0]
[1735783532992,1.5813,197.94,197.84,150.0]
[1735783534013,20.0,197.92,197.84,150.0]
[1735783534336,20.0,197.91,197.84,150.0]
[1735783534515,21.5813,197.9,197.84,150.0]
[1735783534703,20.0,197.86,197.84,150.0]
[1735783534901,20.0,197.93,197.84,150.0]
[1735783534902,4.24812619,197.95,197.85,6.1286]
[1735783535100,7.81964899,197.98,197.94,15.38423754]
[1735783535317,7.81964899,197.98,197.97,39.16112154]
[1735783535505,4.52314899,197.98,197.97,58.57109576]
[1735783535706,5.90324333,198.07,198.01,20.0]
[1735783535913,15.63929799,198.12,198.06,15.38423754]
[1735783536419,15.63929799,198.12,198.07,15.38423754]
[1735783536624,41.22376501,198.23,198.07,15.38423754]
[1735783536921,4.98336501,198.22,198.07,15.38423754]
[1735783537117,4.98336501,198.22,198.09,7.8416332]
[1735783537118,20.0,198.19,198.09,7.8416332]
[1735783537825,20.0,198.2,198.09,7.8416332]
[1735783538029,11.22376501,198.23,198.09,15.38423754]
[1735783538202,11.22376501,198.23,198.1,15.38423754]
[1735783538408,20.0,198.2,198.1,15.38423754]
[1735783539121,20.0,198.2,198.09,15.38423754]
[1735783540312,20.0,198.2,198.09,24.54254483]
[1735783542133,20.0,198.2,198.08,24.54254483]
[1735783542329,20.0,198.2,198.07,24.54254483]
[1735783542716,20.0,198.19,198.06,25.29955154]
[1735783545032,20.0,198.18,198.05,56.16106203]
[1735783545213,25.0,198.18,198.04,7.8416332]
[1735783545413,4.98336501,198.17,198.04,7.8416332]
[1735783545839,20.0,198.14,198.02,7.8416332]
[1735783546235,9.98336501,198.17,198.01,32.38417803]
[1735783546547,9.98336501,198.17,198.0,48.31942883]
[1735783546724,28.776884,198.14,197.99,32.1238347]
[1735783547034,28.776884,198.14,197.99,31.36653282]
[1735783547430,9.98336501,198.13,197.97,25.29997968]
[1735783547642,4.98336501,198.13,197.98,24.54254483]
[1735783547935,4.98336501,198.13,197.97,0.75747251]
[1735783547936,4.98336501,198.18,198.04,24.54254483]
[1735783548628,4.98336501,198.18,198.03,24.54254483]
[1735783548933,4.98336501,198.18,198.02,48.31942883]
[1735783549433,20.0,198.18,198.03,0.75723598]
[1735783550024,20.0,198.17,198.03,0.75723598]
[1735783550738,20.0,198.18,198.03,0.75723598]
[1735783550941,4.98336501,198.2,198.04,24.54254483]
[1735783551239,20.0,198.19,198.05,0.75712914]
[1735783551442,11.22376501,198.23,198.06,48.31942883]
[1735783551618,11.22376501,198.23,198.07,0.75705396]
[1735783551932,20.0,198.19,198.07,0.75705396]
[1735783552829,20.0,198.2,198.1,23.776884]
[1735783553037,20.0,198.2,198.11,0.75695969]
[1735783557230,20.0,198.2,198.09,23.776884]
[1735783557635,20.0,198.2,198.1,0.75695086]
[1735783557827,4.98336501,198.29,198.13,20.0]
[1735783558037,4.98336501,198.29,198.14,24.53367919]
[1735783558541,5.00305775,198.34,198.18,6.2301]
[1735783558740,6.0419,198.39,198.25,24.54254483]
[1735783559042,4.98336501,198.43,198.27,48.31942883]
[1735783559245,4.98336501,198.43,198.27,23.776884]
[1735783559445,1.5513,198.48,198.29,48.31942883]
[1735783559748,1.5513,198.48,198.31,23.776884]
[1735783559926,1.5513,198.48,198.33,23.776884]
[1735783560116,1.5513,198.48,198.35,23.776884]
[1735783560316,6.0419,198.5,198.35,23.776884]
[1735783560543,23.776884,198.49,198.34,0.75595386]
[1735783560737,9.98336501,198.49,198.3,33.14019012]
[1735783560933,9.98336501,198.49,198.34,7.8416332]
[1735783561141,23.776884,198.48,198.34,7.8416332]
[1735783561363,4.98336501,198.49,198.34,7.8416332]
[1735783561831,20.0,198.47,198.33,24.53299807]
[1735783562026,6.0419,198.5,198.34,23.776884]
[1735783562348,20.0,198.47,198.34,23.776884]
[1735783563230,6.0419,198.5,198.34,31.6185172]
[1735783563425,4.98336501,198.49,198.34,23.776884]
[1735783563929,23.776884,198.48,198.32,24.54254483]
[1735783564849,23.776884,198.48,198.3,25.2986239]
[1735783564850,5.0,198.45,198.3,25.2986239]
[1735783565040,30.0,198.47,198.28,24.54254483]
[1735783565041,33.76024901,198.44,198.28,24.54254483]
[1735783565353,20.0,198.41,198.28,24.54254483]
[1735783567427,4.98336501,198.44,198.31,23.776884]
[1735783568659,4.98336501,198.44,198.29,15.30755273]
[1735783569036,4.98336501,198.44,198.3,23.776884]
[1735783571033,20.0,198.45,198.32,39.08443673]
[1735783571233,10.00305775,198.49,198.32,39.08443673]
[1735783571462,20.0,198.46,198.32,23.776884]
[1735783571959,20.0,198.46,198.32,39.08443673]
[1735783572556,20.0,198.46,198.32,23.776884]
[1735783572856,20.0,198.46,198.32,39.08443673]
[1735783574367,20.0,198.44,198.3,15.30755273]
[1735783574771,20.0,198.44,198.3,23.776884]
[1735783576173,20.0,198.44,198.3,39.08443673]
[1735783576464,20.0,198.46,198.3,39.08443673]
[1735783576772,23.776884,198.47,198.3,39.08443673]
[1735783576949,23.776884,198.47,198.31,0.75615826]
[1735783577150,10.00305775,198.49,198.31,0.75615826]
[1735783577151,23.776884,198.48,198.31,0.75615826]
[1735783577345,10.00305775,198.49,198.32,23.776884]
[1735783577979,31.26489138,198.5,198.34,23.776884]
[1735783578553,36.24825639,198.5,198.34,23.776884]
[1735783578753,20.0,198.46,198.31,15.30755273]
[1735783578955,20.0,198.46,198.32,15.30755273]
[1735783579195,20.0,198.46,198.33,23.776884]
[1735783583197,1.5847,198.45,198.3,15.30755273]
[1735783583371,1.5847,198.45,198.34,15.30755273]
[1735783583573,20.0,198.47,198.35,0.75598243]
[1735783584369,20.0,198.47,198.34,23.776884]
[1735783585599,20.0,198.47,198.34,39.08443673]
[1735783591088,20.0,198.47,198.35,0.7559975]
[1735783591675,20.0,198.47,198.36,39.08443673]
[1735783593009,20.0,198.47,198.38,15.30755273]
[1735783593210,20.0,198.47,198.37,15.30755273]
[1735783593504,20.0,198.47,198.36,15.30755273]
[1735783593700,20.0,198.47,198.36,39.08443673]
[1735783594602,20.0,198.47,198.37,23.776884]
[1735783594974,20.0,198.47,198.36,39.08443673]
[1735783595176,32.84959138,198.5,198.43,15.30755273]
[1735783595375,26.80769138,198.5,198.44,15.30755273]
[1735783595605,25.22299138,198.5,198.44,15.30755273]
[1735783596305,25.22299138,198.5,198.43,15.30755273]
[1735783596495,25.22299138,198.5,198.42,15.30755273]
[1735783597302,25.18691062,198.54,198.43,15.30755273]
[1735783597607,25.22299138,198.5,198.42,15.30755273]
[1735783597805,25.22299138,198.5,198.4,23.776884]
[1735783597806,25.22299138,198.5,198.43,15.30755273]
[1735783597981,20.0,198.52,198.43,15.30755273]
[1735783598183,20.0,198.52,198.44,15.30755273]
[1735783598382,20.0,198.52,198.45,23.776884]
[1735783598593,1.5847,198.55,198.45,39.08443673]
[1735783598799,21.5847,198.55,198.45,39.08443673]
[1735783599003,21.5847,198.55,198.45,23.776884]
[1735783599309,21.5847,198.55,198.45,39.08443673]
[1735783600779,20.0,198.57,198.47,23.776884]
[1735783601110,7.749,198.6,198.49,39.08443673]
[1735783601309,5.00305775,198.63,198.51,39.08443673]
[1735783601481,7.749,198.65,198.53,15.30755273]
[1735783601799,7.749,198.65,198.53,39.08443673]
[1735783602010,20.0,198.62,198.53,23.776884]
[1735783602205,20.0,198.62,198.51,15.30755273]
[1735783602516,20.0,198.62,198.49,6.3699]
[1735783602517,19.82359316,198.62,198.52,39.08443673]
[1735783604078,7.749,198.65,198.53,15.30755273]
[1735783604278,7.749,198.7,198.58,39.08443673]
[1735783604678,20.0,198.67,198.58,39.08443673]
[1735783604880,20.0,198.67,198.58,23.776884]
[1735783605177,12.75205775,198.75,198.59,15.30755273]
[1735783605515,20.0,198.72,198.63,23.776884]
[1735783605697,12.75205775,198.75,198.63,39.08443673]
[1735783605893,20.0,198.72,198.63,23.776884]
[1735783606193,20.0,198.72,198.62,0.7549418]
[1735783606391,20.0,198.72,198.61,15.30755273]
[1735783606596,20.0,198.72,198.63,23.776884]
[1735783607101,12.75205775,198.75,198.63,23.776884]
[1735783607495,20.0,198.72,198.63,23.776884]
[1735783608198,20.0,198.72,198.56,16.06256668]
[1735783608595,20.0,198.72,198.56,0.75501395]
[1735783608911,20.0,198.72,198.57,23.776884]
[1735783609205,20.0,198.72,198.56,0.75501395]
[1735783609206,20.0,198.72,198.58,0.75511379]
[1735783609506,20.0,198.72,198.59,23.776884]
[1735783610412,20.0,198.72,198.56,0.75512505]
[1735783610585,20.0,198.72,198.57,23.776884]
[1735783610906,20.0,198.72,198.59,23.776884]
[1735783611310,25.00305775,198.72,198.59,23.776884]
[1735783611612,24.98336501,198.72,198.55,0.7551313]
[1735783611817,20.0,198.65,198.46,1.5269]
[1735783612124,25.29115106,198.64,198.46,1.5269]
[1735783612297,29.69251886,198.64,198.46,1.5269]
[1735783612614,29.69251886,198.64,198.49,23.776884]
[1735783612823,29.69251886,198.64,198.46,1.5269]
[1735783613493,23.776884,198.66,198.49,10.0]
[1735783613799,28.34168664,198.68,198.51,5.0]
[1735783614003,28.34168664,198.68,198.52,5.0]
[1735783614400,28.34168664,198.68,198.49,10.0]
[1735783614711,4.4013678,198.67,198.49,10.0]
[1735783615096,8.96617044,198.67,198.51,5.0]
[1735783615497,8.96617044,198.67,198.49,5.0]
[1735783615732,20.0,198.64,198.5,5.0]
[1735783615899,20.0,198.64,198.51,5.0]
[1735783616103,20.0,198.6,198.48,28.776884]
[1735783616600,21.5831,198.6,198.48,28.776884]
[1735783618419,21.5831,198.6,198.48,33.776884]
[1735783618725,21.5831,198.6,198.48,28.776884]
[1735783619225,21.5831,198.6,198.5,5.0]
[1735783620222,21.5831,198.6,198.5,10.0]
[1735783620402,1.5831,198.6,198.51,5.0]
[1735783621426,1.5831,198.6,198.5,5.0]
[1735783621824,1.5831,198.6,198.51,5.0]
[1735783622430,1.5831,198.6,198.49,10.0]
[1735783622623,1.5831,198.6,198.51,5.0]
[1735783623509,1.5831,198.6,198.5,10.0]
[1735783623708,1.5831,198.6,198.5,5.0]
[1735783625019,1.5831,198.6,198.49,10.0]
[1735783625224,1.5831,198.6,198.5,5.0]
[1735783625828,1.5831,198.6,198.48,33.776884]
[1735783626039,8.0051,198.6,198.46,0.75557218]
[1735783626209,20.0,198.56,198.42,10.0]
[1735783626719,1.43606378,198.56,198.41,6.5269]
[1735783626928,5.31641906,198.56,198.41,6.5269]
[1735783627125,5.31641906,198.56,198.42,5.0]
[1735783627712,5.31641906,198.56,198.41,6.5269]
[1735783627922,5.31641906,198.56,198.42,5.0]
[1735783628123,5.31641906,198.56,198.41,6.5269]
[1735783628124,5.31641906,198.56,198.44,5.0]
[1735783628336,5.31641906,198.56,198.45,5.0]
[1735783628639,5.31641906,198.56,198.44,5.0]
[1735783628952,5.31641906,198.56,198.43,10.0]
[1735783629422,5.31641906,198.56,198.45,5.0]
[1735783629625,8.0051,198.6,198.49,5.0]
[1735783629848,20.0,198.57,198.49,5.0]
[1735783630044,20.0,198.57,198.49,10.0]
[1735783630427,1.5831,198.6,198.51,5.0]
[1735783630651,1.5831,198.6,198.52,5.0]
[1735783630850,5.19633773,198.64,198.53,10.0]
[1735783631360,20.0,198.61,198.52,5.0]
[1735783631527,20.0,198.61,198.5,5.0]
[1735783632224,20.0,198.61,198.5,10.0]
[1735783632424,20.0,198.61,198.5,5.0]
[1735783632848,20.0,198.61,198.49,5.0]
[1735783633149,20.0,198.61,198.5,5.0]
[1735783633541,20.0,198.61,198.49,10.0]
[1735783633748,20.0,198.61,198.49,5.0]
[1735783633936,20.0,198.61,198.48,29.933784]